bitfinex-derivatives/quotes_ETHF0:USTF0_20241007
["timestamp","ask_amount","ask_price","bid_price","bid_amount"]
[1728309083865,3.61021,2485.4,2485.2,0.40243]
[1728309084061,3.2078,2485.4,2484.9,3.2078]
[1728309084362,0.40247,2485.0,2484.9,3.2078]
[1728309084869,3.2078,2485.4,2484.5,3.2078]
[1728309085166,0.40249,2484.9,2484.7,0.4025]
[1728309085373,0.40247,2485.0,2484.9,0.40248]
[1728309085567,1.00614,2485.1,2484.5,4.21418]
[1728309085866,0.40249,2484.9,2484.8,0.40249]
[1728309086071,4.21384,2485.4,2484.5,3.2078]
[1728309086072,4.35,2485.3,2484.5,3.2078]
[1728309086363,1.00627,2484.8,2484.4,0.3946]
[1728309086564,1.0063,2484.7,2484.3,0.40257]
[1728309086772,0.40259,2484.3,2484.0,3.6003]
[1728309087064,3.2078,2484.5,2483.7,3.61047]
[1728309087267,3.2078,2484.5,2483.4,0.4248]
[1728309087268,1.00647,2484.3,2483.4,0.4248]
[1728309087468,4.35,2484.1,2483.4,0.4248]
[1728309087667,0.40267,2483.8,2483.5,0.40271]
[1728309087866,1.00659,2484.0,2483.4,0.4248]
[1728309088060,1.00663,2483.9,2483.4,0.82752]
[1728309088262,1.42111,2484.0,2483.4,0.4248]
[1728309088464,0.40267,2483.8,2483.5,0.4027]
[1728309088664,0.4145,2484.0,2483.4,0.4248]
[1728309088864,1.00663,2483.9,2483.4,0.4248]
[1728309089163,1.00663,2483.9,2483.4,0.82752]
[1728309089364,0.40271,2483.5,2483.4,0.4248]
[1728309089666,0.40273,2483.4,2483.2,3.2078]
[1728309089873,0.40273,2483.4,2483.2,3.61055]
[1728309090062,0.4145,2484.0,2483.2,3.2078]
[1728309090267,0.40275,2483.3,2483.2,3.2078]
[1728309090568,0.40275,2483.3,2482.8,0.3915]
[1728309090569,1.00682,2483.5,2482.9,3.2078]
[1728309090768,1.00687,2483.4,2482.8,0.3915]
[1728309091072,0.40284,2482.7,2482.6,3.61065]
[1728309091278,0.40284,2482.7,2482.6,3.2078]
[1728309091778,3.2078,2483.3,2482.5,0.40287]
[1728309091779,1.00699,2483.0,2482.5,0.40287]
[1728309092070,0.40291,2482.3,2482.2,4.00001]
[1728309092272,1.00703,2482.9,2482.2,3.5971]
[1728309092472,1.00707,2482.8,2482.2,3.5971]
[1728309092771,1.00716,2482.6,2482.2,4.00001]
[1728309092973,0.40291,2482.4,2482.2,4.00002]
[1728309093171,1.00716,2482.6,2482.2,3.5971]
[1728309093370,0.40287,2482.6,2482.4,0.40288]
[1728309093670,3.2078,2483.1,2482.2,3.5971]
[1728309093871,0.4247,2483.2,2482.6,3.2078]
[1728309094074,0.40284,2482.7,2482.6,3.2078]
[1728309095071,0.40284,2482.8,2482.6,3.61066]
[1728309095265,1.00699,2483.0,2482.6,3.61066]
[1728309095472,0.40284,2482.7,2482.6,3.2078]
[1728309096377,1.43164,2483.2,2482.6,3.2078]
[1728309097276,1.00699,2483.0,2482.3,3.2078]
[1728309097475,0.40284,2482.8,2482.5,0.40286]
[1728309097676,0.40284,2482.7,2482.5,0.40287]
[1728309098179,0.40278,2483.1,2482.7,0.40283]
[1728309098369,1.00693,2483.2,2482.7,0.40283]
[1728309098370,0.40282,2482.9,2482.7,0.40283]
[1728309098570,0.4088,2483.3,2482.3,3.2078]
[1728309098770,0.40283,2482.9,2482.7,0.40284]
[1728309098979,1.00695,2483.1,2482.3,3.2078]
[1728309099191,4.35,2483.2,2482.3,3.2078]
[1728309099480,0.40289,2482.4,2482.3,3.2078]
[1728309099878,1.42687,2482.6,2482.1,0.40293]
[1728309100078,0.40291,2482.3,2482.1,0.40293]
[1728309100575,4.0288,2482.2,2481.7,3.2078]
[1728309100775,3.2078,2482.5,2481.7,3.2078]
[1728309100776,0.40298,2481.9,2481.7,0.403]
[1728309100974,1.00735,2482.2,2481.4,3.2078]
[1728309101175,1.0074,2482.0,2481.4,3.2078]
[1728309101370,0.403,2481.8,2481.6,0.40302]
[1728309101977,0.40303,2481.6,2481.1,4.0383]
[1728309102180,7.5578,2481.9,2481.1,0.4105]
[1728309102375,0.40311,2481.1,2480.8,3.2078]
[1728309102676,0.40314,2480.9,2480.8,0.40315]
[1728309102876,4.35,2481.3,2480.5,0.4105]
[1728309102877,7.5578,2481.3,2480.5,0.4105]
[1728309103077,7.5578,2481.3,2480.4,1.05455252]
[1728309103078,0.40319,2480.6,2480.4,0.40322]
[1728309103388,5.35784,2481.0,2480.2,3.2078]
[1728309103389,4.35,2481.0,2480.2,3.2078]
[1728309103588,4.35,2481.0,2480.0,1.99312878]
[1728309103589,0.40325,2480.3,2480.0,1.86912252]
[1728309103775,0.40323,2480.4,2480.1,0.40326]
[1728309103972,4.35,2480.7,2479.9,1.05455252]
[1728309104278,0.40327,2480.1,2479.8,4.66566252]
[1728309104481,0.40325,2480.3,2479.9,0.40329]
[1728309104681,0.40324,2480.3,2479.8,4.26235252]
[1728309104881,0.40326,2480.2,2479.9,0.40329]
[1728309105183,0.40329,2480.0,2479.8,4.26235252]
[1728309105483,0.40329,2480.0,2479.7,1.05455252]
[1728309105484,0.4033,2479.9,2479.7,1.05455252]
[1728309105675,0.40334,2479.7,2479.4,4.66572252]
[1728309105877,0.40335,2479.6,2479.4,3.2078]
[1728309106077,0.40334,2479.7,2479.4,3.61117]
[1728309106282,0.40336,2479.6,2479.4,3.2078]
[1728309106481,1.00825,2479.9,2479.4,3.2078]
[1728309106778,0.4034,2479.3,2479.0,0.40344]
[1728309106985,0.4034,2479.3,2478.9,4.66375252]
[1728309106986,0.40339,2479.4,2479.1,0.40343]
[1728309107171,0.4034,2479.3,2479.0,1.45799252]
[1728309107377,4.35,2479.4,2478.9,4.26235252]
[1728309107582,4.35,2479.4,2478.7,1.05455252]
[1728309107780,7.5578,2479.4,2478.7,1.05455252]
[1728309107981,7.5578,2479.4,2478.7,0.40349]
[1728309107982,0.40344,2479.1,2478.7,0.40349]
[1728309108198,7.5578,2479.4,2478.5,4.26235252]
[1728309108390,4.35,2479.1,2478.5,4.26235252]
[1728309108594,7.5578,2479.4,2478.5,4.26235252]
[1728309108890,7.5578,2479.4,2478.8,3.2078]
[1728309109086,0.40342,2479.2,2478.7,0.40348]
[1728309109288,0.40345,2479.0,2478.5,3.61132]
[1728309109491,0.40347,2478.9,2478.5,3.2078]
[1728309109685,4.75343,2479.1,2478.7,0.40348]
[1728309109987,0.40345,2479.0,2478.5,3.2078]
[1728309110192,0.40345,2479.0,2478.6,0.4035]
[1728309110391,4.35,2479.1,2478.5,3.2078]
[1728309110692,0.40346,2478.9,2478.5,3.61131]
[1728309110883,4.35,2479.1,2478.5,3.2078]
[1728309111090,0.40349,2478.8,2478.5,3.2078]
[1728309111293,0.40349,2478.8,2478.5,4.26235252]
[1728309111494,0.40351,2478.6,2478.5,3.2078]
[1728309112292,4.7535,2478.7,2478.5,3.2078]
[1728309112489,0.40351,2478.6,2478.5,3.2078]
[1728309112696,4.43791,2478.6,2478.5,3.2078]
[1728309112895,10.43791,2478.6,2478.5,3.2078]
[1728309113592,1.00885,2478.5,2477.9,1.05455252]
[1728309113800,0.40361,2478.0,2477.9,1.05455252]
[1728309113985,0.40362,2477.9,2477.8,1.05455252]
[1728309114301,4.35,2478.2,2477.8,1.02878616]
[1728309114493,0.40362,2477.9,2477.8,1.02878616]
[1728309114795,4.35,2478.2,2477.8,1.02878616]
[1728309114992,0.40362,2477.9,2477.8,1.02878616]
[1728309115298,0.40364,2477.8,2477.7,1.02878616]
[1728309115594,0.40366,2477.7,2477.6,1.02878616]
[1728309115899,4.35,2477.9,2477.4,1.58182878]
[1728309115900,1.00912,2477.8,2477.4,1.58182878]
[1728309116102,0.40367,2477.6,2477.5,1.02774788]
[1728309116392,4.75367,2477.6,2477.5,1.02774788]
[1728309116584,0.40369,2477.5,2477.4,1.02774788]
[1728309116787,55.186,2477.6,2477.3,1.02774788]
[1728309116788,0.4037,2477.4,2477.3,1.02774788]
[1728309116986,0.40374,2477.2,2477.1,1.02774788]
[1728309117288,0.40374,2477.2,2477.0,1.02774788]
[1728309117289,0.40375,2477.1,2477.0,1.02774788]
[1728309117596,4.35,2477.1,2476.9,1.02774788]
[1728309117793,4.35,2477.1,2476.8,1.02774788]
[1728309118294,0.40379,2476.9,2476.8,1.02774788]
[1728309118493,3.78789588,2476.9,2476.8,1.02774788]
[1728309118694,4.19168588,2476.9,2476.8,1.02774788]
[1728309119089,3.78789588,2476.9,2476.7,4.63935788]
[1728309119289,4.35,2477.1,2476.8,0.14406422]
[1728309119490,0.40374,2477.2,2477.0,0.14406422]
[1728309119691,0.40374,2477.2,2477.1,0.14406422]
[1728309119897,4.35,2477.4,2477.1,0.14406422]
[1728309120102,4.35,2477.4,2476.7,4.23554788]
[1728309120284,4.35,2477.4,2476.0,4.35]
[1728309120285,3.2078,2477.7,2477.3,0.14406422]
[1728309120486,4.35,2477.8,2477.6,0.14406422]
[1728309120690,0.40362,2478.0,2477.7,0.54771422]
[1728309120902,4.35,2478.1,2477.9,0.54768422]
[1728309121095,4.35,2478.1,2478.0,0.14406422]
[1728309121296,3.2078,2478.6,2478.0,0.14406422]
[1728309121297,4.7378,2478.4,2478.0,0.14406422]
[1728309121600,3.61132,2478.6,2478.3,0.54761422]
[1728309121795,3.61132,2478.6,2478.5,0.14406422]
[1728309121796,0.40352,2478.6,2478.5,0.14406422]
[1728309122187,4.35,2479.1,2478.5,0.14406422]
[1728309122396,0.4035,2478.7,2478.6,0.14406422]
[1728309123097,0.40348,2478.8,2478.6,0.14406422]
[1728309123400,0.40348,2478.8,2478.7,0.14406422]
[1728309125003,4.75348,2478.8,2478.7,0.14406422]
[1728309125191,8.3844,2478.8,2478.2,0.4102]
[1728309125393,8.3844,2478.8,2478.2,0.81377]
[1728309125394,5.35872,2478.8,2478.2,0.81377]
[1728309125594,0.40351,2478.6,2478.5,0.14406422]
[1728309125793,0.40351,2478.6,2478.3,0.14406422]
[1728309125794,0.40354,2478.4,2478.3,0.14406422]
[1728309126298,0.40361,2478.0,2477.7,0.40365]
[1728309126607,0.40366,2477.7,2477.6,3.2078]
[1728309126897,4.35,2478.1,2478.0,0.14406422]
[1728309126898,2.33295293,2478.1,2478.0,0.14406422]
[1728309127098,12.92511,2479.3,2478.0,0.14406422]
[1728309127099,0.40355,2478.4,2478.1,0.40359]
[1728309127301,0.40349,2478.7,2478.6,0.14406422]
[1728309128899,3.2078,2479.0,2478.6,0.14406422]
[1728309129096,4.35,2479.1,2478.9,0.14406422]
[1728309129097,4.75344,2479.1,2478.9,0.14406422]
[1728309129301,4.35,2479.1,2478.9,0.14406422]
[1728309129496,1.00867,2478.9,2478.3,1.25045]
[1728309129694,1.00867,2478.9,2478.6,0.14406422]
[1728309129695,0.40349,2478.7,2478.6,0.14406422]
[1728309131000,0.40346,2478.9,2478.7,0.40349]
[1728309131194,0.40346,2478.9,2478.8,0.14406422]
[1728309131396,3.2078,2479.1,2478.8,0.14406422]
[1728309131595,3.61123,2479.1,2479.0,0.14406422]
[1728309132393,3.2078,2479.1,2479.0,0.14406422]
[1728309132598,4.35,2479.3,2479.0,0.14406422]
[1728309132901,0.40337,2479.5,2479.2,0.54747422]
[1728309133096,0.40338,2479.4,2479.3,0.14406422]
[1728309133706,4.35,2479.6,2479.3,0.14406422]
[1728309133902,0.40338,2479.4,2479.3,0.14406422]
[1728309134401,4.35,2479.6,2479.3,0.54745422]
[1728309134402,0.40337,2479.5,2479.3,0.54745422]
[1728309134595,1.00835,2479.7,2479.5,0.14406422]
[1728309134596,0.40334,2479.7,2479.5,0.14406422]
[1728309134801,0.40333,2479.7,2479.6,0.14406422]
[1728309135497,0.40332,2479.8,2479.6,0.14406422]
[1728309135710,10.093,2479.9,2479.8,0.14406422]
[1728309136005,10.4963,2479.9,2479.8,0.14406422]
[1728309137206,10.093,2479.9,2479.8,0.14406422]
[1728309137402,10.093,2479.9,2479.8,0.54737422]
[1728309137704,10.093,2479.9,2479.8,0.14406422]
[1728309138396,10.093,2479.9,2479.8,0.54737422]
[1728309138707,0.4033,2479.9,2479.8,0.14406422]
[1728309138907,0.40329,2480.0,2479.8,0.14406422]
[1728309139112,0.40325,2480.2,2479.9,0.54735422]
[1728309139303,0.40327,2480.1,2479.9,0.54735422]
[1728309139501,5.35812,2480.3,2479.9,0.14406422]
[1728309139805,4.35,2480.3,2479.9,0.14406422]
[1728309140101,4.35,2480.3,2479.6,3.2078]
[1728309140102,0.40328,2480.0,2479.7,0.40332]
[1728309140302,0.40327,2480.1,2480.0,0.14406422]
[1728309140505,0.40327,2480.1,2479.3,0.40338]
[1728309140506,0.40336,2479.6,2479.3,0.40338]
[1728309140707,4.35,2479.8,2479.7,0.14406422]
[1728309141206,0.40337,2479.5,2479.3,0.40339]
[1728309141406,0.40335,2479.7,2479.6,0.14406422]
[1728309142107,4.35,2479.8,2479.6,0.14406422]
[1728309142305,7.95,2480.1,2479.7,3.35186422]
[1728309142505,0.4033,2479.9,2479.8,0.14406422]
[1728309142805,0.40331,2479.8,2479.7,0.14406422]
[1728309143001,0.40331,2479.8,2479.6,0.40334]
[1728309143196,7.95,2480.1,2479.6,3.2078]
[1728309143505,7.95,2480.1,2480.0,0.14406422]
[1728309143506,7.96107,2480.1,2480.0,0.14406422]
[1728309145210,4.75327,2480.1,2480.0,0.14406422]
[1728309145506,0.40325,2480.2,2480.0,0.54733422]
[1728309145702,0.40325,2480.2,2480.1,0.14406422]
[1728309146099,4.7626,2480.8,2480.1,0.14406422]
[1728309146300,3.2078,2480.9,2480.7,0.14406422]
[1728309146613,3.2078,2480.9,2480.0,3.2078]
[1728309146614,3.61094,2480.9,2480.8,0.14406422]
[1728309147317,0.40314,2480.9,2480.8,0.14406422]
[1728309147615,0.4032,2480.5,2480.4,3.2078]
[1728309148104,0.3894,2480.8,2480.4,3.35186422]
[1728309148304,0.40313,2481.0,2480.7,0.14406422]
[1728309148498,5.35775,2481.2,2480.9,0.14406422]
[1728309148704,3.61092,2481.1,2480.9,0.14406422]
[1728309149008,0.40312,2481.0,2480.9,0.14406422]
[1728309149707,0.4032,2480.5,2480.4,3.2078]
[1728309150103,0.4032,2480.5,2480.4,3.35186422]
[1728309150603,17.589,2480.5,2479.6,3.2078]
[1728309150905,4.35,2480.0,2479.6,0.40334]
[1728309151106,3.611,2480.5,2480.4,0.14406422]
[1728309151308,3.2078,2480.5,2480.3,0.14406422]
[1728309151505,0.40321,2480.5,2479.6,3.2078]
[1728309151709,0.40321,2480.5,2480.4,0.14406422]
[1728309152412,0.4032,2480.5,2480.4,0.14406422]
[1728309152611,3.6296,2480.8,2480.4,0.14406422]
[1728309152815,3.6296,2480.8,2479.9,3.2078]
[1728309152816,0.40318,2480.7,2480.6,0.14406422]
[1728309153413,0.40325,2480.3,2480.0,0.4211]
[1728309153605,1.00797,2480.6,2480.5,0.14406422]
[1728309153606,0.40318,2480.6,2480.5,0.14406422]
[1728309153804,0.40318,2480.6,2480.0,0.14406422]
[1728309153805,1.00811,2480.3,2480.0,0.14406422]
[1728309154112,5.35811,2480.3,2480.0,0.14406422]
[1728309154415,0.40327,2480.1,2480.0,0.14406422]
[1728309155119,0.40331,2479.8,2479.4,0.4211]
[1728309155415,0.4119,2480.0,2479.4,0.4211]
[1728309155611,0.40335,2479.6,2479.4,0.4211]
[1728309155819,4.35,2479.6,2478.9,1.02774788]
[1728309156007,4.35,2479.6,2478.6,3.02557666]
[1728309156008,4.35,2479.3,2478.6,3.02557666]
[1728309156208,4.35,2479.3,2478.6,1.44374788]
[1728309156209,0.40349,2478.8,2478.6,1.44374788]
[1728309156410,7.5578,2479.3,2478.6,0.416]
[1728309156606,0.40349,2478.7,2478.6,0.416]
[1728309156806,0.40348,2478.8,2478.6,0.416]
[1728309157011,7.9697,2479.3,2478.6,0.416]
[1728309157214,0.40342,2479.2,2478.9,0.40345]
[1728309157609,1.00841,2479.5,2479.0,3.61124]
[1728309157820,4.35,2479.7,2479.1,0.40343]
[1728309158011,3.2078,2479.8,2478.6,1.42476]
[1728309158012,4.35,2479.2,2478.7,3.2078]
[1728309158212,0.40346,2478.9,2478.7,0.40349]
[1728309158515,4.35,2479.2,2478.6,3.6238]
[1728309158714,4.35,2479.2,2478.9,0.40345]
[1728309158715,0.40344,2479.1,2478.9,0.40345]
[1728309159016,0.40349,2478.7,2478.6,3.6238]
[1728309159406,0.40349,2478.7,2478.6,7.6582]
[1728309159613,5.35854,2479.2,2478.6,4.4504]
[1728309159614,1.0086,2479.1,2478.6,4.4504]
[1728309159815,4.35,2479.2,2478.6,3.6238]
[1728309160015,0.40344,2479.1,2478.9,0.40345]
[1728309160218,0.40344,2479.0,2478.9,0.40345]
[1728309160411,0.3857,2479.3,2478.6,3.6238]
[1728309160716,1.39422,2479.3,2478.6,3.6238]
[1728309160912,0.40345,2479.0,2478.8,0.40347]
[1728309161218,0.40349,2478.8,2478.6,3.6238]
[1728309161419,1.00863,2479.0,2478.6,0.8195]
[1728309161622,1.00857,2479.2,2478.6,3.6238]
[1728309161818,3.2078,2479.4,2478.6,3.6238]
[1728309162012,1.0083,2479.8,2478.9,3.2078]
[1728309162417,0.40337,2479.5,2479.3,0.40338]
[1728309162620,0.40337,2479.5,2479.2,3.2078]
[1728309162824,0.40337,2479.5,2479.3,0.40338]
[1728309163220,0.40336,2479.6,2479.4,0.40338]
[1728309163428,0.40337,2479.5,2479.3,0.40338]
[1728309163815,0.40337,2479.5,2479.2,3.2078]
[1728309163816,0.40337,2479.5,2479.4,4.0336]
[1728309164020,0.40339,2479.4,2479.2,3.6112]
[1728309164225,0.40339,2479.4,2479.3,0.4034]
[1728309164522,1.00838,2479.6,2479.2,3.2078]
[1728309164523,0.40336,2479.6,2479.2,3.2078]
[1728309164725,0.40337,2479.5,2479.4,0.40337]
[1728309164917,1.00835,2479.7,2479.1,1.00856]
[1728309165123,0.40344,2479.1,2479.0,0.40344]
[1728309165315,0.40343,2479.1,2479.0,0.40343]
[1728309165516,0.40349,2478.7,2478.6,0.416]
[1728309165716,0.40349,2478.7,2478.6,3.6238]
[1728309165917,0.40349,2478.7,2478.6,4.02731]
[1728309166222,0.40349,2478.7,2478.6,0.81951]
[1728309166726,0.40349,2478.7,2478.4,0.40353]
[1728309166929,0.40348,2478.8,2478.5,0.40352]
[1728309167127,7.5578,2479.2,2478.3,3.2078]
[1728309167128,1.00858,2479.1,2478.3,3.2078]
[1728309167318,1.00858,2479.1,2478.4,0.40353]
[1728309167319,1.00869,2478.9,2478.4,0.40353]
[1728309167525,0.4035,2478.7,2478.4,0.40353]
[1728309168028,1.00862,2479.0,2478.3,3.2078]
[1728309168225,0.40349,2478.8,2478.5,0.40352]
[1728309169227,1.00862,2479.0,2478.3,3.2078]
[1728309169528,0.40351,2478.6,2478.3,0.40355]
[1728309169719,0.40351,2478.6,2478.0,4.62382]
[1728309169720,4.7693,2478.9,2478.0,3.6148]
[1728309169919,0.40355,2478.4,2478.0,3.6148]
[1728309170125,0.40355,2478.4,2478.1,0.40358]
[1728309170332,1.00879,2478.6,2478.1,0.40358]
[1728309170533,0.40354,2478.5,2478.2,0.40357]
[1728309170723,40.8,2478.7,2478.2,0.40356]
[1728309170926,0.40355,2478.4,2478.2,0.40356]
[1728309171530,1.00878,2478.6,2478.2,0.40356]
[1728309171736,0.40354,2478.5,2478.2,0.40356]
[1728309171940,0.40354,2478.5,2478.0,3.6148]
[1728309172226,1.00878,2478.6,2478.0,3.6148]
[1728309172527,0.40353,2478.5,2478.3,0.40355]
[1728309172731,1.00875,2478.7,2478.0,4.62381]
[1728309173031,0.40351,2478.7,2478.4,0.40353]
[1728309173431,9.38739,2478.9,2478.3,3.2078]
[1728309173624,8.3787,2478.9,2478.3,3.2078]
[1728309173826,3.6271,2478.9,2478.7,0.40348]
[1728309174034,3.6271,2478.9,2478.8,0.40348]
[1728309174840,8.38057,2478.9,2478.4,0.40354]
[1728309175032,8.38057,2478.9,2478.3,3.2078]
[1728309175033,8.38057,2478.9,2478.6,0.40351]
[1728309175335,8.38057,2478.9,2478.3,3.2078]
[1728309175336,7.9771,2478.9,2478.3,3.2078]
[1728309175835,7.9771,2478.9,2478.7,0.40348]
[1728309176035,7.9771,2478.9,2478.5,3.2078]
[1728309176228,7.9771,2478.9,2478.8,0.40348]
[1728309176629,3.6271,2478.9,2478.7,0.40349]
[1728309176826,5.35854,2479.2,2478.8,0.40348]
[1728309176827,7.5578,2479.2,2478.8,0.40348]
[1728309177132,7.5578,2479.2,2478.4,1.00885]
[1728309177133,7.5578,2479.2,2478.6,4.21658]
[1728309177331,7.96122,2479.2,2478.9,0.40345]
[1728309177541,7.5578,2479.2,2478.6,4.21658]
[1728309177833,7.5578,2479.2,2478.8,0.40347]
[1728309177834,0.40343,2479.1,2478.8,0.40347]
[1728309178036,0.40343,2479.1,2478.6,3.2078]
[1728309178236,7.5578,2479.2,2478.6,3.2078]
[1728309178444,3.88,2478.8,2478.7,0.40349]
[1728309178632,3.88,2478.8,2478.4,1.00885]
[1728309178935,3.88,2479.1,2478.5,1.00881]
[1728309179132,4.28343,2479.1,2478.9,0.40345]
[1728309179334,3.88,2479.1,2479.0,0.40344]
[1728309179527,3.88,2479.1,2478.9,0.40345]
[1728309179528,4.28343,2479.1,2478.9,0.40345]
[1728309179930,3.88,2479.1,2478.6,4.21658]
[1728309180140,3.88,2479.1,2479.0,0.40344]
[1728309180529,0.40333,2479.7,2479.2,1.00853]
[1728309180729,3.88,2480.0,2479.4,3.2078]
[1728309180933,3.88,2480.0,2479.4,0.40337]
[1728309180934,0.40335,2479.6,2479.4,0.40337]
[1728309181132,1.00825,2479.9,2479.0,3.5945]
[1728309181133,0.40335,2479.7,2479.0,3.5945]
[1728309181431,0.40335,2479.7,2479.0,0.3867]
[1728309181432,3.88,2479.4,2479.0,0.3867]
[1728309181637,0.40343,2479.1,2478.9,0.40345]
[1728309182132,1.4155,2479.3,2478.6,4.21655]
[1728309182336,0.40343,2479.1,2478.9,0.40345]
[1728309182638,1.4155,2479.3,2478.6,4.21655]
[1728309182639,1.00854,2479.2,2478.6,4.21655]
[1728309182840,1.00854,2479.2,2478.7,0.40348]
[1728309183042,1.00854,2479.2,2478.6,3.2078]
[1728309183043,3.88,2479.1,2478.6,3.2078]
[1728309183341,3.88,2479.1,2478.3,4.63389]
[1728309183543,3.88,2479.1,2478.3,3.625]
[1728309183544,1.00862,2479.0,2478.3,3.625]
[1728309183740,3.88,2478.8,2478.3,3.625]
[1728309183929,0.407,2479.3,2478.3,3.2078]
[1728309184135,0.407,2479.3,2477.9,3.2078]
[1728309184136,0.40356,2478.4,2477.9,3.2078]
[1728309184335,1.0088,2478.6,2477.7,0.4172]
[1728309184336,3.88,2478.2,2477.7,0.4172]
[1728309184548,0.4036,2478.1,2477.8,0.40363]
[1728309184841,3.88,2477.9,2477.2,4.21712]
[1728309185044,3.88,2477.9,2477.7,0.40365]
[1728309185238,3.88,2477.9,2477.5,3.2078]
[1728309185440,4.28363,2477.9,2477.6,0.40367]
[1728309185741,3.88,2477.9,2477.8,0.40364]
[1728309186040,3.88,2478.5,2478.2,0.40356]
[1728309186240,3.88,2478.5,2478.1,3.2078]
[1728309186442,0.40358,2478.2,2478.0,0.4036]
[1728309186635,1.00889,2478.4,2477.8,3.2078]
[1728309186841,4.88885,2478.5,2477.6,4.21699]
[1728309187046,4.88885,2478.5,2477.9,3.2078]
[1728309187340,3.88,2478.2,2477.9,3.2078]
[1728309187551,0.4036,2478.1,2477.9,0.40362]
[1728309187843,0.40356,2478.4,2477.8,4.2169]
[1728309188041,3.88,2478.5,2477.8,4.2169]
[1728309188252,4.28349,2478.8,2478.6,0.40351]
[1728309188443,0.40349,2478.8,2478.3,1.00889]
[1728309188645,0.40354,2478.5,2478.3,0.81155]
[1728309188944,4.88883,2478.5,2478.0,0.40359]
[1728309189147,3.88,2478.2,2477.9,3.2078]
[1728309189348,0.40361,2478.0,2477.9,3.2078]
[1728309189940,4.43881,2478.0,2477.9,3.2078]
[1728309190642,1.20835,2478.4,2477.9,3.2078]
[1728309190850,0.40356,2478.3,2478.1,0.40358]
[1728309191046,1.20835,2478.4,2478.2,0.40357]
[1728309191442,4.0352,2478.3,2477.9,3.2078]
[1728309191642,4.0352,2478.3,2478.1,0.40359]
[1728309191643,0.40357,2478.3,2478.1,0.40359]
[1728309191846,0.412,2478.4,2477.9,3.2078]
[1728309192242,0.40361,2478.0,2477.6,0.408]
[1728309192441,0.40363,2477.9,2477.6,0.408]
[1728309192652,3.88,2477.9,2477.6,0.408]
[1728309192840,0.40366,2477.7,2477.5,3.2078]
[1728309193041,0.40364,2477.8,2477.5,3.2078]
[1728309193244,3.88,2477.9,2477.5,3.2078]
[1728309193651,3.88,2477.9,2477.6,0.40367]
[1728309193652,0.40366,2477.7,2477.6,0.40367]
[1728309193858,0.40364,2477.8,2477.7,0.40365]
[1728309194057,0.40364,2477.8,2477.6,0.40366]
[1728309194357,0.40366,2477.7,2477.5,0.40368]
[1728309194552,3.88,2477.9,2477.3,3.2078]
[1728309194753,0.4037,2477.4,2477.3,3.2078]
[1728309195055,3.88,2477.4,2476.8,3.6064]
[1728309195256,0.40376,2477.1,2476.9,0.40378]
[1728309195554,0.40377,2477.0,2476.7,0.40381]
[1728309195757,0.40378,2477.0,2476.8,0.4038]
[1728309195955,3.88,2477.4,2476.9,3.2078]
[1728309196162,3.2078,2477.6,2476.9,3.2078]
[1728309196163,3.88,2477.6,2476.9,3.2078]
[1728309196463,3.88,2477.6,2477.5,0.40369]
[1728309196464,4.28368,2477.6,2477.5,0.40369]
[1728309196761,8.9252,2477.6,2477.2,3.2078]
[1728309196959,8.9252,2477.6,2477.2,3.61153]
[1728309196960,0.40371,2477.4,2477.2,3.61153]
[1728309197158,3.88,2477.6,2477.2,3.2078]
[1728309197354,0.40371,2477.4,2477.2,3.61152]
[1728309197659,1.00923,2477.5,2476.8,3.2078]
[1728309197861,1.00923,2477.5,2476.9,0.40379]
[1728309197862,0.40377,2477.1,2476.9,0.40379]
[1728309198257,0.40377,2477.1,2476.8,3.2078]
[1728309198258,4.88942,2477.1,2476.6,0.3891]
[1728309198458,1.00948,2476.9,2476.6,0.3891]
[1728309198660,0.40382,2476.7,2476.6,0.79293]
[1728309199062,0.40382,2476.7,2476.5,3.2078]
[1728309199063,0.40383,2476.6,2476.5,3.2078]
[1728309199566,3.6136,2477.2,2476.5,3.2078]
[1728309199567,1.00947,2477.0,2476.5,3.2078]
[1728309199761,3.88,2477.1,2476.5,4.21742]
[1728309200066,1.00944,2477.0,2476.5,3.2078]
[1728309200262,0.40379,2476.9,2476.8,0.40378]
[1728309200467,4.8894,2477.1,2476.5,3.2078]
[1728309200658,2.01838,2477.6,2476.5,3.2078]
[1728309200659,0.609,2479.4,2477.0,3.2078]
[1728309200963,3.88,2478.5,2477.6,4.21697]
[1728309201164,4.28354,2478.5,2478.1,0.40359]
[1728309201468,4.28354,2478.5,2477.7,3.2078]
[1728309201469,7.0878,2478.5,2477.7,3.2078]
[1728309201658,0.4072,2478.4,2477.7,3.2078]
[1728309201957,0.4072,2478.4,2478.0,3.2078]
[1728309202158,0.40357,2478.3,2477.7,3.2078]
[1728309202359,0.40357,2478.3,2477.9,0.40362]
[1728309202762,0.4072,2478.4,2477.7,3.2078]
[1728309202957,3.61133,2478.5,2478.1,3.61138]
[1728309203162,3.2078,2478.5,2478.1,3.2078]
[1728309203357,3.2078,2478.5,2478.2,0.40357]
[1728309203558,3.61133,2478.5,2478.1,3.61139]
[1728309203764,3.2078,2478.5,2478.1,3.2078]
[1728309203965,0.4036,2478.1,2477.8,3.2078]
[1728309204162,7.0878,2478.5,2477.8,3.2078]
[1728309204469,0.40366,2477.7,2477.4,3.6115]
[1728309204770,1.00896,2478.2,2477.4,3.2078]
[1728309204963,0.4036,2478.1,2477.5,0.40369]
[1728309205164,1.41006,2478.2,2477.4,3.2078]